bitfinex/quotes_ETHUSD_20251124
["timestamp","ask_amount","ask_price","bid_price","bid_amount"]
[1764005447462,0.4789,2917.5,2916.8,3.42931339]
[1764005447968,0.4789,2917.5,2916.8,6.85772809]
[1764005448479,0.4789,2917.5,2916.8,0.001]
[1764005448904,0.1983,2916.9,2916.8,0.001]
[1764005449404,0.6833,2916.9,2916.8,0.001]
[1764005449769,0.477,2917.4,2916.8,0.001]
[1764005450202,0.477,2917.9,2917.0,6.291027]
[1764005450401,0.477,2917.9,2916.9,0.405504]
[1764005450602,0.477,2917.9,2916.8,1.41240056]
[1764005450603,0.477,2917.9,2916.8,7.54363585]
[1764005450806,0.477,2917.9,2916.8,4.11522115]
[1764005451143,0.477,2917.9,2916.9,2.015805]
[1764005451304,0.477,2917.9,2917.0,0.95594408]
[1764005451466,0.477,2917.9,2917.1,6.319764]
[1764005451673,0.477,2917.9,2917.0,0.95594408]
[1764005452404,0.477,2917.9,2916.8,0.001]
[1764005452705,0.1919,2916.9,2916.8,0.001]
[1764005453169,0.6689,2916.9,2916.8,0.001]
[1764005458085,0.1919,2916.9,2915.8,6.82019687]
[1764005458312,0.477,2916.8,2915.9,0.68201969]
[1764005458507,0.477,2916.8,2915.5,7.79431]
[1764005458813,0.477,2916.8,2915.6,6.85965152]
[1764005459182,0.477,2916.8,2915.1,0.236]
[1764005459385,0.477,2916.8,2915.3,8.961549]
[1764005459586,0.477,2916.8,2915.5,7.723556]
[1764005460203,0.1919,2916.9,2915.6,0.407704]
[1764005460513,0.1919,2916.9,2915.4,0.8961549]
[1764005460514,0.1919,2916.9,2916.0,0.405504]
[1764005460715,0.1919,2916.9,2915.7,0.0022]
[1764005460917,0.477,2917.8,2916.0,1.13109811]
[1764005461119,0.1852,2918.6,2916.0,1.13109811]
[1764005461120,0.477,2917.7,2916.4,1.13109811]
[1764005461287,0.477,2917.7,2916.7,4.600914]
[1764005461487,0.477,2917.7,2916.4,0.0022]
[1764005461686,0.477,2917.7,2915.8,0.407704]
[1764005461890,0.477,2917.7,2915.9,2.748699]
[1764005462129,0.477,2917.7,2916.1,11.480579]
[1764005462323,0.477,2917.7,2916.3,6.997241]
[1764005462538,0.477,2917.7,2916.5,7.178932]
[1764005462841,0.4756866,2917.7,2916.7,6.317546]
[1764005463064,0.1852,2918.6,2916.6,0.405504]
[1764005463065,0.1852,2918.6,2917.1,0.405504]
[1764005463205,0.002,2920.5,2917.5,0.405504]
[1764005463206,0.1919,2918.8,2917.5,0.405504]
[1764005463405,0.1919,2918.8,2917.9,0.405504]
[1764005463705,0.1919,2918.8,2917.6,1.1053224]
[1764005463906,0.1919,2918.8,2917.3,0.405504]
[1764005463907,0.1919,2918.8,2916.9,1.13459811]
[1764005464107,0.1919,2918.8,2917.3,0.405504]
[1764005464350,0.1919,2918.8,2917.7,10.169421]
[1764005464517,0.1919,2918.8,2917.7,9.784698]
[1764005464518,0.002,2918.5,2917.7,9.784698]
[1764005464869,0.002,2918.5,2917.2,0.236]
[1764005464870,0.002,2918.5,2917.0,0.641504]
[1764005465004,0.002,2918.5,2917.0,5.44527314]
[1764005465005,0.1919,2917.8,2917.0,5.44527314]
[1764005465209,0.002,2918.5,2917.2,3.902434]
[1764005465456,0.002,2918.5,2917.5,0.405504]
[1764005465656,0.002,2918.5,2917.6,7.669411]
[1764005465956,0.002,2918.5,2917.7,18.30052511]
[1764005466107,0.002,2918.5,2918.0,11.78977]
[1764005466306,0.002,2918.5,2918.2,5.102799]
[1764005466626,0.002,2918.5,2917.9,0.405504]
[1764005466627,0.002,2918.5,2917.8,2.705396]
[1764005467041,0.002,2918.5,2918.0,2.715396]
[1764005467748,0.002,2918.5,2917.9,6.85424448]
[1764005467908,0.002,2918.5,2917.9,3.42712224]
[1764005468347,0.477,2918.4,2917.5,6.85518422]
[1764005468556,0.477,2918.4,2916.9,6.85659432]
[1764005468557,0.1919,2917.6,2916.9,6.85659432]
[1764005468940,0.1919,2917.6,2916.5,6.85744923]
[1764005469115,0.6689,2917.6,2916.6,0.70944492]
[1764005469516,0.1919,2917.6,2916.6,0.70944492]
[1764005469738,0.1919,2917.6,2916.5,6.85744923]
[1764005469739,0.1919,2916.7,2916.4,0.001]
[1764005469961,0.1919,2916.7,2916.4,3.42984934]
[1764005470654,0.477,2917.5,2916.4,10.28761918]
[1764005470836,0.477,2917.5,2916.6,6.85729958]
[1764005471151,0.477,2917.5,2916.7,3.08947332]
[1764005471362,0.477,2917.5,2916.8,1.33754227]
[1764005471868,0.477,2917.5,2916.6,2.380064]
[1764005472432,0.1919,2916.7,2916.4,0.001]
[1764005472670,0.477,2917.5,2916.4,3.4641567]
[1764005472980,0.477,2917.4,2916.5,4.82298767]
[1764005473263,0.477,2917.4,2916.6,0.48239877]
[1764005473573,0.477,2917.4,2916.5,5.674636]
[1764005473746,0.1919,2917.6,2916.6,15.03741827]
[1764005473942,0.1919,2917.6,2916.7,12.358384]
[1764005474140,0.1919,2917.6,2916.6,12.081298]
[1764005474446,0.1919,2917.6,2916.8,2.523545]
[1764005474641,0.477,2917.5,2916.6,2.35703427]
[1764005474873,0.1919,2916.7,2916.4,0.001]
[1764005475726,0.6689,2916.7,2916.4,0.001]
[1764005476181,0.477,2916.6,2916.4,0.001]
[1764005476343,0.477,2916.6,2916.1,0.001]
[1764005476853,0.477,2916.6,2915.8,0.001]
[1764005477053,0.1919,2915.9,2915.8,0.001]
[1764005477255,0.1919,2915.9,2915.3,6.740641]
[1764005477482,0.1919,2915.9,2915.0,2.35703427]
[1764005477654,0.1919,2915.9,2914.8,11.90270022]
[1764005477655,0.1919,2915.9,2915.1,0.23570343]
[1764005477858,0.1919,2915.9,2915.0,7.982065]
[1764005478093,0.1919,2915.9,2915.0,10.33909927]
[1764005478283,0.1919,2915.9,2915.0,11.854059]
[1764005478456,0.1919,2916.7,2915.0,7.610192]
[1764005478657,0.1919,2916.9,2915.8,2.35703427]
[1764005478877,0.0009,2916.7,2915.9,2.35703427]
[1764005479077,0.0009,2916.7,2916.0,6.85871056]
[1764005479278,0.4779,2916.7,2916.1,0.68587106]
[1764005479594,0.4779,2916.7,2916.0,6.85871056]
[1764005479595,0.4779,2916.7,2915.6,3.42974167]
[1764005479901,0.1983,2915.7,2915.1,2.35703427]
[1764005480058,0.1983,2915.7,2915.1,3.43041405]
[1764005480455,0.4626,2916.0,2915.1,6.8608281]
[1764005480670,0.4626,2916.0,2915.3,3.658208]
[1764005480869,0.1983,2916.1,2915.2,0.68608281]
[1764005481096,0.4626,2915.9,2914.7,5.78791653]
[1764005481395,0.4626,2915.9,2914.5,6.86222355]
[1764005481598,0.4626,2915.9,2914.4,2.35803427]
[1764005481599,0.1983,2914.6,2914.4,0.001]
[1764005482403,0.1983,2915.3,2914.5,3.348378]
[1764005482600,0.1983,2915.3,2914.6,1.0211854]
[1764005482760,0.4626,2915.2,2914.4,3.43222209]
[1764005482961,0.4626,2915.2,2914.4,0.001]
[1764005483165,0.1983,2915.3,2914.5,0.001]
[1764005484064,0.4626,2915.2,2914.5,0.001]
[1764005488164,0.4626,2915.2,2914.2,0.001]
[1764005488366,0.96159411,2915.1,2914.2,0.001]
[1764005488573,0.96159411,2915.1,2914.1,0.001]
[1764005488574,0.81306309,2915.0,2914.1,0.001]
[1764005488824,0.41618699,2914.9,2913.8,0.001]
[1764005488964,0.4626,2914.8,2913.8,0.001]
[1764005489363,0.0984,2914.6,2913.8,0.001]
[1764005489676,0.31747924,2914.7,2913.8,0.001]
[1764005490013,0.236,2914.6,2913.8,0.001]
[1764005490215,0.4626,2914.5,2913.8,0.001]
[1764005491296,0.8969,2915.3,2913.8,0.001]
[1764005491466,0.4626,2915.2,2913.8,0.001]
[1764005493407,0.4626,2915.2,2914.0,8.834387]
[1764005493567,0.0009,2915.0,2914.1,0.1037]
[1764005495172,0.0009,2915.0,2914.1,3.53525498]
[1764005495377,0.0009,2915.0,2914.1,6.9668462]
[1764005495578,0.0009,2915.0,2914.2,0.69668462]
[1764005497028,0.4626,2914.9,2913.9,0.001]
[1764005498802,0.0009,2915.0,2913.9,0.001]
[1764005499115,0.0009,2914.0,2913.9,0.001]
[1764005499477,0.0009,2914.0,2913.9,0.2115]
[1764005499708,0.0009,2914.0,2913.9,3.572235]
[1764005499882,0.0009,2914.0,2913.9,5.34156507]
[1764005500590,0.0009,2914.0,2913.9,20.41418407]
[1764005500796,0.0009,2914.0,2913.9,17.50441607]
[1764005501195,0.0009,2914.0,2913.9,20.93624283]
[1764005501398,0.0009,2914.0,2913.9,23.2932771]
[1764005501595,0.0009,2914.0,2913.9,11.71297683]
[1764005502126,0.0009,2914.0,2913.9,14.0700111]
[1764005502327,0.002,2915.9,2913.9,14.0700111]
[1764005502328,0.4626,2915.8,2914.0,1.13109811]
[1764005502497,0.002,2915.9,2914.7,0.405504]
[1764005502834,0.4626,2915.8,2914.8,4.397422]
[1764005503139,0.4626,2915.8,2914.2,6.86294694]
[1764005503283,0.4626,2915.8,2914.3,1.00702851]
[1764005504094,0.1983,2914.4,2913.9,0.001]
[1764005504293,0.1983,2914.4,2913.9,3.43279225]
[1764005504503,0.4626,2914.4,2913.9,0.001]
[1764005506288,0.32000095,2914.3,2913.9,0.001]
[1764005506734,0.4626,2914.2,2913.9,0.001]
[1764005507229,0.32002763,2914.1,2913.9,0.001]
[1764005507407,0.32002763,2914.1,2913.8,0.001]
[1764005507622,0.0984,2913.7,2911.9,2.37079234]
[1764005507920,0.80462763,2913.6,2911.9,0.29552275]
[1764005508087,0.80462763,2913.6,2911.4,0.2105]
[1764005508088,0.55602763,2913.5,2911.5,9.302198]
[1764005508283,0.55602763,2913.5,2911.5,2.252447]
[1764005508284,0.32002763,2913.4,2911.5,2.252447]
[1764005508513,0.32002763,2913.4,2911.4,4.08309]
[1764005508683,0.80462763,2913.3,2911.4,0.2105]
[1764005508897,0.32002763,2913.2,2911.4,0.91855192]
[1764005509097,0.80462763,2913.2,2911.6,6.86907542]
[1764005509296,0.32002763,2913.1,2911.6,6.86907542]
[1764005509595,0.80462763,2913.1,2911.6,6.86907542]
[1764005509920,0.4976,2913.5,2912.0,2.265446]
[1764005510117,0.31976176,2913.4,2911.5,7.27480584]
[1764005510318,0.31976176,2913.3,2911.5,0.405504]
[1764005510529,0.31976176,2913.2,2911.4,3.43472559]
[1764005510826,0.31976176,2913.1,2911.0,3.53890025]
[1764005511035,0.31976176,2913.0,2911.1,0.37749003]
[1764005511239,0.81736176,2913.5,2911.3,5.204096]
[1764005511390,0.638218,2913.9,2911.5,6.075952]
[1764005511391,0.1957,2912.9,2911.5,6.075952]
[1764005511600,0.1957,2912.9,2911.7,2.630728]
[1764005511844,0.1957,2912.9,2911.7,8.055318]
[1764005512039,0.4976,2913.1,2912.0,3.552336]
[1764005512207,0.1957,2913.2,2912.0,0.2105]
[1764005512403,0.6933,2913.2,2911.8,0.405504]
[1764005512721,0.1957,2913.2,2911.9,2.430823]
[1764005512928,0.4976,2913.6,2912.1,0.405504]
[1764005513100,0.4976,2913.6,2912.0,8.278446]
[1764005513101,0.1957,2913.4,2912.3,3.43371218]
[1764005513303,0.1957,2913.4,2912.2,4.30220488]
[1764005513304,0.1957,2913.4,2912.2,4.30218466]
[1764005513619,0.4976,2913.3,2912.2,6.86761975]
[1764005514630,0.4976,2913.3,2911.9,6.86836772]
[1764005514940,0.4976,2913.3,2912.0,0.03434065]
[1764005515137,0.7326,2913.3,2912.0,0.03434065]
[1764005515299,0.7326,2913.3,2911.7,7.0793395]
[1764005515300,0.4976,2913.3,2912.1,6.86789602]
[1764005515498,0.4976,2913.2,2912.2,0.6867896]
[1764005516449,0.4976,2913.2,2911.7,2.37079234]
[1764005516627,0.55424324,2913.1,2911.3,3.837094]
[1764005516946,0.4976,2913.2,2911.4,0.2105]
[1764005517110,0.235,2913.0,2911.4,0.2105]
[1764005517322,0.235,2913.0,2911.5,6.86931134]
[1764005517626,0.4976,2912.9,2911.4,1.28863212]
[1764005517808,0.4976,2912.9,2911.4,4.72336354]
[1764005518137,0.4976,2912.9,2911.4,6.86950506]
[1764005518534,0.002,2913.5,2911.5,11.72672242]
[1764005518868,0.002,2913.5,2911.9,0.405504]
[1764005518869,0.1957,2912.9,2911.9,0.405504]
[1764005519038,0.1957,2912.9,2911.7,5.165886]
[1764005519241,0.1957,2912.9,2911.9,12.03410372]
[1764005519579,0.1957,2912.9,2911.9,6.86836772]
[1764005519725,0.002,2913.5,2912.0,2.6901]
[1764005519726,0.1957,2913.2,2912.0,2.6901]
[1764005519927,0.1957,2913.2,2911.6,2.37079234]
[1764005519928,0.1957,2913.2,2912.1,0.03433948]
[1764005520236,0.6933,2913.2,2911.8,0.2105]
[1764005520435,0.4976,2913.1,2911.6,0.72559411]
[1764005520773,0.4976,2913.1,2911.7,0.80003974]
[1764005521226,0.4976,2913.1,2911.9,6.86836772]
[1764005521830,0.4976,2913.1,2911.9,2.99566586]
[1764005522131,0.4976,2913.1,2911.8,3.43428081]
[1764005522328,0.4976,2913.1,2911.8,0.76688526]
[1764005522553,0.4976,2913.1,2911.6,3.43453209]
[1764005522730,0.4976,2913.1,2911.7,3.408269]
[1764005522929,0.4976,2913.1,2911.7,2.925507]
[1764005523331,0.4976,2913.1,2911.9,6.86836772]
[1764005523781,0.4976,2913.1,2911.5,0.405504]
[1764005524077,0.4976,2913.1,2911.5,3.43455323]
[1764005524284,0.4976,2913.1,2911.6,0.36450532]
[1764005524948,0.4976,2913.1,2911.4,0.2105]
[1764005524949,0.4976,2913.1,2911.2,6.87001922]
[1764005525148,0.4976,2913.1,2911.6,0.405504]
[1764005525346,0.4976,2913.1,2911.5,3.96348]
[1764005525347,0.4976,2913.1,2911.8,0.405504]
[1764005525564,0.4976,2913.1,2911.7,3.64491975]
[1764005525737,0.4976,2913.1,2911.8,0.36449198]
[1764005526153,0.4976,2913.1,2911.3,0.2105]
[1764005526381,0.4976,2913.1,2911.3,3.64539162]
[1764005526543,0.31890491,2913.0,2911.3,7.08028324]
[1764005527050,0.31890491,2913.0,2911.1,0.37849003]
[1764005527051,0.4976,2912.9,2911.1,0.37849003]
[1764005527255,0.1957,2911.2,2911.1,0.001]
[1764005527444,0.4307,2911.2,2910.6,0.001]
[1764005527639,0.81669482,2911.1,2910.6,0.001]
[1764005527840,0.4976,2911.1,2910.6,0.001]
[1764005528178,0.7326,2911.0,2910.6,0.001]
[1764005528355,0.7326,2911.0,2909.2,0.1087]
[1764005528356,0.4976,2910.9,2909.2,0.1087]
[1764005528557,0.4976,2910.9,2909.2,6.98339244]
[1764005528740,0.4976,2910.9,2909.4,3.859534]
[1764005528945,0.235,2910.8,2909.5,0.2135]
[1764005529148,0.235,2910.7,2909.3,0.71968924]
[1764005529457,0.4976,2910.8,2909.4,3.4371348]
[1764005529670,0.235,2910.7,2909.5,4.186161]
[1764005529979,0.4976,2911.1,2909.6,1.12739306]
[1764005530280,0.235,2911.0,2909.6,1.12739306]
[1764005530454,0.235,2910.9,2909.6,1.12739306]
[1764005530654,0.235,2910.8,2909.6,1.12739306]
[1764005530954,0.235,2910.8,2909.6,1.34089306]
[1764005531346,0.4976,2911.0,2909.7,6.87356084]
[1764005531579,0.1957,2911.2,2909.8,0.82144539]
[1764005531785,0.4976,2910.9,2909.3,3.43725294]
[1764005531980,0.4976,2910.9,2909.4,0.2135]
[1764005532187,0.4976,2910.9,2909.5,0.43987416]
[1764005532370,0.235,2911.1,2909.8,2.27236]
[1764005532683,0.235,2911.1,2909.7,0.405504]
[1764005532850,0.7326,2911.1,2909.5,0.405504]
[1764005533046,0.7326,2911.1,2909.8,2.016032]
[1764005533251,0.7326,2911.1,2910.0,6.87285222]
[1764005533586,0.4307,2911.2,2910.0,3.43642611]
[1764005533898,0.6933,2911.2,2910.0,6.87285222]
[1764005534214,0.6933,2911.2,2909.2,5.91682473]
[1764005534215,0.81671273,2911.1,2909.2,5.91682473]
[1764005534402,0.4976,2911.1,2909.3,0.83955499]
[1764005534598,0.4976,2911.1,2909.4,5.129997]
[1764005534888,0.4976,2911.1,2909.6,2.230693]
[1764005535089,0.4976,2911.1,2909.5,0.619004]
[1764005535418,0.4976,2911.1,2909.3,4.26384791]
[1764005535712,0.4976,2911.1,2909.3,6.87441838]
[1764005535913,0.31920318,2911.0,2909.3,6.87441838]
[1764005536117,0.4976,2911.1,2909.3,6.87441838]
[1764005536317,0.7326,2911.1,2910.0,0.001]
[1764005536798,0.4976,2911.0,2910.0,0.001]
[1764005537395,0.7326,2911.0,2910.0,0.001]
[1764005538301,0.4976,2911.0,2910.0,0.001]
[1764005538801,0.4307,2911.2,2910.0,0.001]
[1764005539100,0.1957,2911.2,2910.0,0.2145]
[1764005539500,0.9283,2911.2,2910.0,7.08731389]
[1764005539667,0.9283,2911.2,2910.1,0.70873139]
[1764005539668,0.4307,2911.2,2910.1,0.70873139]
[1764005539869,0.4789,2911.1,2910.1,0.70873139]
[1764005540091,0.4307,2911.2,2910.1,0.70873139]
[1764005540365,0.9096,2911.2,2910.1,0.70873139]
[1764005540780,0.4789,2911.1,2910.1,0.70873139]
[1764005540982,0.4789,2911.1,2910.2,0.77960836]
[1764005541198,0.7139,2911.1,2910.0,3.43742548]
[1764005541402,0.7139,2911.1,2910.0,0.001]
[1764005541607,0.4789,2911.1,2910.0,0.001]
[1764005541815,0.235,2911.1,2910.0,0.2145]
[1764005542123,0.235,2911.1,2910.1,2.340384]
[1764005542286,0.235,2911.1,2910.2,0.2554884]
[1764005542617,0.235,2911.1,2910.1,3.7476]
[1764005542823,0.7139,2911.1,2910.1,3.7476]
[1764005543026,0.7139,2911.1,2910.0,0.2145]
[1764005543379,0.7139,2911.1,2910.1,6.87261606]
[1764005543820,0.4789,2911.1,2910.1,6.87261606]
[1764005544123,0.4789,2911.1,2910.2,0.70871161]
[1764005545633,0.4789,2911.1,2910.0,0.001]
[1764005545634,0.4789,2911.1,2910.1,3.43630803]
[1764005545821,0.4789,2911.1,2910.0,3.43738386]
[1764005546135,0.4789,2911.1,2910.0,6.87380997]
[1764005548046,0.4789,2911.1,2910.1,9.17061]
[1764005548245,0.91640278,2914.5,2913.4,19.186949]
[1764005548457,1.22580107,2915.7,2914.1,12.260914]
[1764005548653,0.4789,2915.6,2914.3,0.405504]
[1764005548998,0.1953,2915.9,2913.8,3.678561]
[1764005548999,0.1769685,2915.7,2914.5,8.57471]
[1764005549259,0.1769685,2915.7,2914.1,2.37079234]
[1764005549260,0.1953,2915.9,2915.4,0.89139213]
[1764005549413,0.002,2915.9,2915.6,3.678561]
[1764005549614,0.002,2915.9,2915.3,0.1082]
[1764005549615,0.002,2915.9,2915.8,5.46055572]
[1764005549855,0.002,2916.2,2915.9,3.678561]
[1764005550018,0.002,2916.2,2916.1,3.678561]
[1764005550217,0.002,2916.2,2916.1,5.37734856]
[1764005550450,0.002,2916.2,2916.1,5.81224856]
[1764005550614,0.002,2916.2,2916.1,6.46513563]
[1764005551056,0.002,2916.2,2916.1,6.70013563]
[1764005551358,0.4789,2917.5,2916.2,7.055666]
[1764005551653,0.4789,2917.5,2916.4,5.44569671]
[1764005551948,0.4789,2917.5,2916.4,5.75592557]
[1764005552152,0.4789,2917.5,2916.4,3.98878986]
[1764005552351,0.4789,2917.5,2916.4,7.39366885]
[1764005552550,0.1933,2918.0,2916.4,7.39366885]
[1764005552551,0.4789,2917.9,2916.4,8.03417285]
[1764005552778,0.4789,2917.9,2916.4,5.25157285]
[1764005552981,0.002,2918.5,2916.7,0.405504]
[1764005553180,0.002,2918.5,2917.5,0.88033053]
[1764005553181,0.4789,2918.4,2917.5,0.88033053]
[1764005553382,0.002,2918.5,2917.7,3.678561]
[1764005553682,0.4789,2918.4,2917.9,2.666061]
[1764005553883,0.4789,2918.4,2917.3,3.678561]
[1764005553884,0.1933,2917.8,2917.3,3.678561]
[1764005554056,0.1933,2917.8,2917.5,3.678561]
[1764005554382,0.1933,2917.8,2916.7,1.76066106]
[1764005554383,0.4789,2917.7,2917.0,3.678561]
[1764005554584,0.1933,2917.8,2917.2,3.678561]
[1764005555047,0.002,2918.5,2917.2,3.678561]
[1764005555048,0.002,2918.5,2917.3,3.678561]
[1764005555249,0.4809,2918.5,2917.6,3.678561]
[1764005555672,0.4809,2918.5,2917.8,3.678561]
[1764005555872,0.4809,2918.5,2918.0,3.678561]
[1764005555873,0.4789,2918.4,2918.0,3.678561]
[1764005556071,0.002,2918.5,2917.9,3.678561]
[1764005556280,0.002,2918.5,2918.1,3.678561]
[1764005556484,0.002,2918.5,2918.3,3.678561]
[1764005556675,0.002,2918.5,2918.1,0.1062]
[1764005556873,0.002,2918.5,2918.3,3.678561]
[1764005557797,0.002,2918.5,2918.4,0.73461787]
[1764005558002,0.002,2918.5,2918.4,4.81868287]
[1764005558200,0.002,2918.5,2918.4,4.41317887]
[1764005558394,0.002,2918.5,2918.4,3.913561]
[1764005558587,0.002,2918.5,2918.2,3.678561]
[1764005558791,0.002,2918.5,2918.3,3.678561]
[1764005559393,0.002,2918.5,2918.2,3.678561]
[1764005559581,0.002,2918.5,2918.2,4.0805371]
[1764005559908,0.002,2918.5,2918.4,3.678561]
[1764005560296,0.002,2918.5,2918.2,0.235]
[1764005561215,0.002,2918.5,2918.1,0.05857662]
[1764005563202,0.002,2918.5,2918.1,3.48546]
[1764005563585,0.002,2918.5,2918.1,0.05857662]
[1764005563817,0.002,2918.5,2918.2,7.64434384]
[1764005564116,0.002,2918.5,2918.1,0.05857662]
[1764005564319,0.002,2918.5,2917.9,0.235]
[1764005565793,0.002,2918.5,2917.5,0.4439]
[1764005565997,0.002,2918.5,2917.7,25.691602]
[1764005566179,0.4789,2918.4,2917.1,0.1067]
[1764005566378,0.4789,2918.4,2917.1,3.76971664]
[1764005566596,0.4789,2918.4,2917.1,7.19777875]
[1764005567088,0.4789,2918.4,2917.1,3.76971664]
[1764005567283,0.4789,2918.4,2917.1,7.19777875]
[1764005567482,0.4789,2918.4,2917.1,3.76971664]
[1764005567710,0.4789,2918.4,2917.1,3.53471664]
[1764005567911,0.4789,2918.4,2917.1,7.19777875]
[1764005568125,0.4789,2918.4,2917.1,0.3417]
[1764005568329,0.4789,2918.4,2917.1,3.76973452]
[1764005568625,0.4789,2918.4,2917.1,3.53473452]
[1764005568931,0.4789,2918.4,2917.1,0.1067]
[1764005569128,0.4789,2918.4,2917.1,3.5347438]
[1764005569329,0.4789,2918.4,2917.1,6.96280591]
[1764005569818,0.4789,2918.4,2917.1,3.5347438]
[1764005571749,0.002,2918.5,2918.1,0.30158653]
[1764005572045,0.002,2918.5,2918.2,6.85353984]
[1764005572219,0.002,2918.5,2918.3,0.30221231]
[1764005572406,0.002,2918.5,2918.1,3.42684371]
[1764005572605,0.002,2918.5,2918.2,0.30223779]
[1764005572814,0.002,2918.5,2918.0,3.42697319]
[1764005573039,0.002,2918.5,2918.1,0.30225769]
[1764005573243,0.002,2918.5,2918.2,0.30225769]
[1764005573442,0.002,2918.5,2918.3,0.30225769]
[1764005573746,0.002,2918.5,2918.4,0.30225769]
[1764005573954,0.002,2918.5,2918.3,0.30225769]
[1764005574112,0.002,2918.5,2918.4,0.30225769]
[1764005575331,0.002,2918.5,2918.4,1.47603173]
[1764005576312,0.002,2918.5,2918.4,0.30225769]
[1764005576649,0.4867,2918.5,2918.4,0.30225769]
[1764005576948,0.4867,2918.5,2918.1,0.88131829]
[1764005577120,0.4867,2918.5,2918.2,0.88131829]
[1764005577321,0.4867,2918.5,2918.4,1.18166687]
[1764005577618,0.4867,2918.5,2917.8,2.34754809]
[1764005577619,0.4847,2918.4,2918.0,1.18166687]
[1764005577839,0.4847,2918.4,2918.1,1.18166687]
[1764005578223,0.002,2918.5,2918.3,2.34754809]
[1764005578426,0.002,2918.5,2918.3,4.093975]
[1764005578645,0.002,2918.8,2918.1,6.8537747]
[1764005578953,0.002,2918.8,2918.7,2.96934585]
[1764005579315,0.002,2918.8,2918.3,4.12624828]
[1764005579550,0.002,2918.8,2918.5,4.12624828]
[1764005580459,0.002,2918.8,2918.7,2.97867438]
[1764005580619,0.002,2919.1,2918.7,5.52202064]
[1764005581014,0.002,2919.1,2918.9,4.12624828]
[1764005581720,0.4867,2919.1,2918.8,2.97624331]
[1764005582024,0.1937,2918.9,2918.8,2.97624331]
[1764005582326,0.002,2919.1,2918.6,2.97624331]
[1764005582530,0.1937,2920.6,2919.0,20.595129]
[1764005582803,0.1937,2920.6,2920.5,2.38337986]
[1764005582962,0.4847,2921.5,2920.6,6.199226]
[1764005583123,0.1937,2921.4,2921.0,2.38098505]
[1764005584021,0.1937,2921.7,2921.0,2.38098505]
[1764005584247,1e-08,2921.9,2921.1,0.1117]
[1764005584840,1e-08,2921.9,2921.1,2.49268505]
[1764005585171,1e-08,2921.9,2921.2,0.29726851]
[1764005585375,1e-08,2921.9,2921.5,0.405504]
[1764005585520,1e-08,2921.9,2921.8,3.51208316]
[1764005585725,0.6784,2924.0,2922.2,0.405504]
[1764005585964,0.6784,2924.0,2922.6,0.405504]
[1764005586261,0.6784,2924.0,2922.3,0.714]
[1764005586262,0.4847,2925.1,2923.8,0.1511]
[1764005586423,1.0,2925.3,2923.5,0.1511]
[1764005586424,0.4847,2924.6,2923.5,0.1511]
[1764005586647,0.6784,2925.0,2923.6,4.512]
[1764005586885,0.6784,2925.0,2923.5,0.1511]
[1764005586886,1.0,2925.3,2923.8,4.753794]
[1764005587087,1.0,2925.3,2923.8,2.934345]
[1764005587294,1.0,2925.3,2923.8,3.7557795]
[1764005587295,1.4847,2925.3,2923.8,3.7557795]
[1764005587476,0.6784,2924.9,2923.8,2.294841]
[1764005587675,0.6784,2924.9,2923.6,4.064945]
[1764005587877,0.1937,2924.9,2923.6,0.48]
[1764005588065,0.1937,2924.9,2923.8,7.38894558]
[1764005588264,0.1937,2924.9,2923.7,0.714]
[1764005588265,0.1937,2924.9,2923.7,3.90029703]
[1764005588588,0.4847,2924.7,2923.5,0.1511]
[1764005588791,0.1937,2924.9,2923.5,3.57161723]
[1764005589003,1.0,2925.3,2923.8,16.77931911]
[1764005589158,0.02899471,2923.9,2923.8,17.08343229]
[1764005589357,0.02899471,2923.9,2923.8,15.58310129]
[1764005589670,0.1937,2926.1,2923.8,15.58310129]
[1764005589671,0.23887157,2929.6,2926.1,0.09999999]
[1764005589861,0.6462,2929.5,2927.4,0.09999999]
[1764005590055,0.1615,2929.5,2927.4,0.09999999]
[1764005590332,0.1615,2929.5,2927.7,0.405504]
[1764005590612,0.1615,2931.1,2929.1,0.09999999]
[1764005590754,0.1615,2931.1,2929.2,0.09999999]
[1764005590755,0.4847,2930.9,2929.2,0.09999999]
[1764005590953,0.4847,2930.9,2928.0,0.09999999]
[1764005590954,2.48398,2930.8,2928.0,0.09999999]
[1764005591202,0.4847,2930.9,2928.4,0.09999999]
[1764005591414,0.1615,2931.1,2929.7,0.09999999]
[1764005591554,0.4847,2930.8,2928.6,0.05]
[1764005591902,0.1615,2928.4,2927.0,22.064]
[1764005592096,0.1615,2928.4,2926.9,0.09999999]
[1764005592254,0.4847,2928.3,2926.5,0.57999999]
[1764005592460,0.236,2928.2,2925.8,11.278816]
[1764005592656,0.4847,2928.3,2926.6,0.09999999]
[1764005593018,0.4847,2928.2,2926.8,0.09999999]
[1764005593599,0.1615,2926.9,2926.2,0.09999999]
[1764005593760,0.1615,2926.9,2925.3,0.09999999]
[1764005593961,0.1615,2926.9,2925.4,0.09999999]
[1764005593962,0.4847,2926.8,2925.4,0.09999999]
[1764005594292,0.4847,2926.7,2925.4,0.09999999]
[1764005594694,0.4847,2926.7,2925.7,0.09999999]
[1764005594897,0.4847,2926.7,2925.9,0.09999999]
[1764005595059,0.1615,2927.2,2926.0,2.664363]
[1764005595411,0.1615,2928.4,2926.6,0.09999999]
[1764005595412,0.4847,2928.3,2926.6,0.09999999]
[1764005595567,0.4847,2928.3,2927.3,0.09999999]
[1764005595768,0.4847,2928.3,2925.1,3.61774905]
[1764005595769,0.96159411,2928.2,2926.0,0.09999999]
[1764005596005,4.692689,2928.0,2925.4,0.09999999]